Cogmind - Beta 15 *** ADVENTURER MODE // 2025.08.23 @ 02:25:30 Player: lepire Result: Destroyed by 6X-AEN(R) with Subdweller Machine Gun Performance ------------- Evolutions (0) 0 Regions Visited (3) 600 Robots Destroyed (24) 120 Value Destroyed (580) 580 Prototype IDs (3) 60 Alien Tech Used (0) 0 Bonus (60) 60 TOTAL SCORE: 1420 Bonus ------- Follower Combat Kills 60 Cogmind --------- Core Integrity 0/250 Matter 269/300 Energy 100/100 System Corruption 2% Temperature Cool (0) Movement Walking (120) Location -10/Subcaves Parts ------- > --- POWER (1) -------- (None) > --- PROPULSION (2) --- Aluminum Leg Improved Aluminum Leg > --- UTILITY (2) ------ Small Storage Unit > --- WEAPON (2) ------- (None) > --- INVENTORY (8) ---- Medium Storage Unit Visual Processing Unit Subdweller Optics Scrap Shield Mining Laser Peak State ------------ > --- POWER ------------ Light Nuclear Core > --- PROPULSION ------- Improved Aluminum Leg Improved Aluminum Leg > --- UTILITY ---------- Small Storage Unit Sensor Array > --- WEAPON ----------- Light Cannon Light Cannon > --- INVENTORY -------- Light Ion Engine Improved Aluminum Leg Improved Aluminum Leg Visual Processing Unit Terrain Scan Processor Targeting Computer Targeting Computer Rocket Launcher [Rating: 12] Favorites ----------- Power Light Ion Engine Engine Light Ion Engine Power Core Light Nuclear Core Propulsion Improved Aluminum Leg Leg Improved Aluminum Leg Utility Small Storage Unit Device Sensor Array Storage Small Storage Unit Weapon Light Cannon Energy Gun Small Laser Ballistic Cannon Light Cannon Launcher Rocket Launcher Special Weapon Mining Laser Build | -11 -10 -10 -10 ------- Run | Yrd Mat Min Sub Slots Evolved . | . . . . Power . | . . . . Propulsion . | . . . . Utility . | . . . . Weapon . | . . . . Parts Attached 19 | 6 10 . 3 Power 4 | 1 3 . . Engine 3 | 1 2 . . Core 1 | . 1 . . Reactor . | . . . . Propulsion 7 | 2 3 . 2 Treads . | . . . . Leg 7 | 2 3 . 2 Wheel . | . . . . Hover . | . . . . Flight . | . . . . Utility 2 | 1 1 . . Device 1 | . 1 . . Storage 1 | 1 . . . Processor . | . . . . Hackware . | . . . . Protection . | . . . . Artifact . | . . . . Weapon 6 | 2 3 . 1 Energy Gun 2 | 2 . . . Energy Cannon . | . . . . Ballistic Gun . | . . . . Ballistic Cannon 2 | . 2 . . Launcher 1 | . 1 . . Special Weapon 1 | . . . 1 Impact Weapon . | . . . . Slashing Weapon . | . . . . Piercing Weapon . | . . . . Special Melee Weapon . | . . . . Unidentified Prototypes . | . . . . Parts Lost 7 | . . 3 4 Power 2 | . . 1 1 Propulsion 2 | . . 1 1 Utility 1 | . . . 1 Weapon 2 | . . 1 1 Highest Loss Streak 3 | . . 3 2 To Critical Strikes 1 | . . . 1 Average Backups 6 | . 7 8 4 Power . | . 1 1 . Propulsion 1 | . 1 1 . Utility 3 | . 2 4 3 Weapon 1 | . 1 2 1 Tool/Special . | . . . . Unused Backups 8 | . 2 . 6 Power 1 | . 1 . . Propulsion . | . . . . Utility 7 | . 1 . 6 Weapon . | . . . . Tool/Special . | . . . . Average Slot Usage (%) 96 | . 99 100 86 Engine 9 | . 10 . 13 Core 4 | . 3 14 . Leg 27 | . 28 28 26 Device 13 | . 13 14 13 Storage 14 | . 14 14 14 Energy Gun 2 | . 3 . . Ballistic Cannon 19 | . 21 28 10 Launcher 2 | . 2 . 5 Peak Build Rating 12 | 6 12 12 11 Average Rating 10 | 4 10 11 8 On Entrance 6 | . 6 12 6 Naked Turns . | . . . . Heaviest Build 18 | 13 18 17 16 Greatest Support 26 | 20 26 26 26 Greatest Overweight (x) 1 | . . 1 . Average Overweight (x) . | . . . . Largest Inventory Capacity 8 | 8 8 8 8 Average Capacity 7 | 7 8 8 8 Most Carried 8 | 1 8 8 7 Average Carried 6 | . 7 8 5 Final Capacity 8 | 8 8 8 8 Final Carried 8 | 1 8 8 6 Class Distribution -------------------- 100% | Mutant Dominant Class ---------------- Mutant | -10/Materials Mutant | -10/Mines Mutant | -10/Subcaves Resources | -11 -10 -10 -10 ----------- Run | Yrd Mat Min Sub Matter Collected 801 | 230 493 . 78 Remotely . | . . . . Salvage Created 675 | . 594 . 81 Parts 39 | . 33 . 6 Haulers Intercepted 1 | . 1 . . Recyclers Shooed 2 | . 2 . . Parts Field Recycled . | . . . . Retrieved Matter . | . . . . Parts Self-Destructed 5 | . . . 5 Prevented . | . . . . Kills | -11 -10 -10 -10 ------- Run | Yrd Mat Min Sub Combat Hostiles Destroyed 17 | . 14 . 3 Guns 1 | . 1 . . Cannons 11 | . 10 . 1 AOE 5 | . 3 . 2 Classes Destroyed 6 | . 5 . 1 Hauler 1 | . 1 . . Recycler 3 | . 3 . . Watcher 3 | . 3 . . Swarmer 5 | . 5 . . Grunt 9 | . 9 . . Subdweller 3 | . . . 3 Best Kill Streak 3 | . 3 . 3 Combat Bots Only 3 | . 3 . 3 Max Kills in Single Turn 2 | . 2 . 1 Gunslinging . | . . . . Exploded 2 | . 2 . 1 Melee . | . . . . Uniques/NPCs Destroyed . | . . . . Combat | -11 -10 -10 -10 -------- Run | Yrd Mat Min Sub Hostile Shots Fired 125 | . 54 15 56 Missed 46 | . 16 3 27 Hits 79 | . 38 12 29 Projectile 79 | . 38 12 29 AOE 14 | . . 14 . Critical Strikes 2 | . . . 2 Damage Taken 1199 | . 264 432 503 Core 256 | . 71 44 141 Absorbed by Shields . | . . . . Ignored by Resistances 348 | . 91 116 141 Regen/Repaired (Parts) 48 | . 48 . . Core Remaining (%) 100 | 100 . . . Volleys Fired 68 | . 54 . 14 Largest 2 | . 2 . 1 Hottest 100 | . 90 . 100 Shots Fired 109 | . 95 . 14 Gun 19 | . 19 . . Cannon 77 | . 73 . 4 Launcher 6 | . 3 . 3 Special 7 | . . . 7 Kinetic 77 | . 73 . 4 Thermal 26 | . 19 . 7 Explosive 6 | . 3 . 3 Electromagnetic . | . . . . Robot Hit Streak 8 | . 8 . 6 Robot Miss Streak 5 | . 5 . 1 Penetration Max . | . . . . Secondary Targets . | . . . . Shots Hit Robots 52 | . 46 . 6 Core Hits 32 | . 26 . 6 Critical Kills . | . . . . Critical Parts Destroyed . | . . . . Critical Strikes 1 | . . . 1 Blast 1 | . . . 1 Melee Attacks . | . . . . Impact . | . . . . Slashing . | . . . . Piercing . | . . . . Sneak Attacks . | . . . . Combat Hostiles . | . . . . Follow-up Attacks . | . . . . Damage Inflicted 1168 | . 951 . 217 Guns 115 | . 115 . . Cannons 697 | . 632 . 65 Explosions 356 | . 204 . 152 Melee . | . . . . Ramming . | . . . . Kinetic 697 | . 632 . 65 Thermal 115 | . 115 . . Explosive 356 | . 204 . 152 Electromagnetic . | . . . . Impact . | . . . . Slashing . | . . . . Piercing . | . . . . Highest Corruption 2 | . 2 2 2 Average Corruption 1 | . 1 2 2 Corruption Purged . | . . . . Corruption Blocked . | . . . . Effects 26 | . 13 6 7 Message Errors 6 | . 2 2 2 Matter Fused 9 | . 5 2 2 Heat Flow Errors 2 | . . . 2 Energy Discharges 6 | . 4 2 . Parts Rejected 1 | . . . 1 Data Loss (minor) 2 | . 2 . . Overload Shots . | . . . . Overflow Damage 2 | . 2 . . Projectiles 2 | . 2 . . Explosions . | . . . . Melee . | . . . . Knockbacks 9 | . 7 . 2 Impact . | . . . . Kinetic 9 | . 7 . 2 Secondary . | . . . . Self-Inflicted Damage 19 | . . . 19 Shots 1 | . . . 1 Rammed . | . . . . Targets Rammed 1 | . . . 1 Kicked 1 | . . . 1 Crushed . | . . . . Highest Temperature 195 | . 66 . 195 Average Temperature 27 | . 19 . 105 Received Heat Transfer 237 | . 90 . 147 Siege Activations . | . . . . Martial Activations . | . . . . Shielding Activations . | . . . . Robots Disrupted . | . . . . Combat Hostiles . | . . . . Robots Corrupted . | . . . . Combat Hostiles . | . . . . Parts Fried . | . . . . Impact Corruptions . | . . . . Robots Melted . | . . . . Combat Hostiles . | . . . . Parts Melted 1 | . 1 . . Heat Transferred 298 | . 298 . . Parts Sabotaged . | . . . . Parts Stolen . | . . . . Parts Stripped . | . . . . Power Chain Reactions . | . . . . Alert | -11 -10 -10 -10 ------- Run | Yrd Mat Min Sub Maximum Alert Level . | . . . . Low Security (%) 100 | 100 100 100 . Level 1 . | . . . . Level 2 . | . . . . Level 3 . | . . . . Level 4 . | . . . . Level 5 . | . . . . High Security . | . . . . Max Security . | . . . . Peak Influence 92 | . 92 52 . Initial 10 | . . 10 . Average 21 | . 27 5 . Influence Increases 542 | . 490 52 . Destroy 0b10 Robot/C 320 | . 280 40 . Destroy 0b10 Robot/NC 35 | . 35 . . Destroy Leader 58 | . 48 10 . Allied During Kill 2 | . . 2 . Successful Hack 30 | . 30 . . Disable Machine 9 | . 9 . . Destroy Structure 13 | . 13 . . Lose Combat Pursuer 75 | . 75 . . Influence Decreases 542 | . 458 84 . Entered New Map 22 | . . 22 . Time Decay 480 | . 450 30 . Lost Part 12 | . . 12 . Lost Ally 20 | . . 20 . Purge Threat 8 | . 8 . . Squads Dispatched 2 | . 2 . . Investigation 2 | . 2 . . Extermination . | . . . . Reinforcement . | . . . . Assault . | . . . . Garrison . | . . . . Intercept . | . . . . Searches Triggered . | . . . . Construction Impeded . | . . . . Haulers Reinforced . | . . . . Active Scanning Responses . | . . . . Cargo Convoy Interrupts . | . . . . Stealth | -11 -10 -10 -10 --------- Run | Yrd Mat Min Sub Distress Signals 4 | . 4 . . Communications Jammed . | . . . . Distress Signals . | . . . . Times Spotted 41 | . 26 4 11 Peak Tracking Total 4 | . 4 3 4 Tactical Retreats 6 | . 3 1 2 Traps | -11 -10 -10 -10 ------- Run | Yrd Mat Min Sub Traps Triggered 3 | . 3 . . Indirectly . | . . . . Trap Hack Attempts . | . . . . Triggered . | . . . . Disarmed . | . . . . Reprogrammed . | . . . . Reused . | . . . . Traps Extracted . | . . . . Installed . | . . . . Triggered . | . . . . Machines | -11 -10 -10 -10 ---------- Run | Yrd Mat Min Sub Machines Disabled 1 | . 1 . . Max in Single Turn 1 | . 1 . . Machines Repaired . | . . . . Machines Dismantled . | . . . . Machines Sabotaged . | . . . . Overloaded Fab Kills . | . . . . Hacking | -11 -10 -10 -10 --------- Run | Yrd Mat Min Sub Machines Accessed 10 | . 10 . . Terminals 8 | . 8 . . Fabricators . | . . . . Repair Stations 1 | . 1 . . Recycling Units 1 | . 1 . . Scanalyzers . | . . . . Garrison Access . | . . . . Total Hacks 25 | . 25 . . Successful 15 | . 15 . . Failed 10 | . 10 . . Catastrophic . | . . . . Database Lockouts . | . . . . Manual . | . . . . Terminals 21 | . 21 . . Fabricators . | . . . . Repair Stations 3 | . 3 . . Recycling Units 1 | . 1 . . Scanalyzers . | . . . . Garrison Access . | . . . . Terminal Hacks 11 | . 11 . . Prototype ID Bank 2 | . 2 . . Branch Access Points 1 | . 1 . . Emergency Access Points 1 | . 1 . . Alert Level 1 | . 1 . . Unreport Threat 1 | . 1 . . Dispatch Records 1 | . 1 . . Investigation Status 1 | . 1 . . Hauler Manifests 1 | . 1 . . Zone Layout 2 | . 2 . . Fabricator Hacks . | . . . . Repair Station Hacks 3 | . 3 . . Scan Component 2 | . 2 . . Repair 1 | . 1 . . Recycling Unit Hacks 1 | . 1 . . Report Inventory 1 | . 1 . . Scanalyzer . | . . . . Garrison Access Hacks . | . . . . Unauthorized Hacks . | . . . . Terminals . | . . . . Fabricators . | . . . . Repair Stations . | . . . . Recycling Units . | . . . . Scanalyzers . | . . . . Garrison Access . | . . . . Data Cores Recovered . | . . . . Used . | . . . . Hacking Detections 8 | . 8 . . Full Trace Events 1 | . 1 . . Feedback Events . | . . . . Feedback Blocked . | . . . . Robot Schematics Acquired . | . . . . Robots Built . | . . . . Authchips . | . . . . Time . | . . . . Total Robot Build Rating . | . . . . Part Schematics Acquired . | . . . . Parts Built . | . . . . Authchips . | . . . . Time . | . . . . Total Part Build Rating . | . . . . Parts Repaired 1 | . 1 . . Time 26 | . 26 . . Parts Recycled . | . . . . Recycled Matter . | . . . . Retrieved Matter . | . . . . Retrieved Components . | . . . . Parts Scanalyzed . | . . . . Part Schematics Acquired . | . . . . Parts Damaged . | . . . . Bothacking | -11 -10 -10 -10 ------------ Run | Yrd Mat Min Sub Used RIF Installer . | . . . . Robots Hacked . | . . . . Non-combat . | . . . . Combat . | . . . . Robot Hacks Applied . | . . . . Relay Couplers Released . | . . . . Fabnet Peak Effective % . | . . . . Robots Rewired . | . . . . Allies Hacked . | . . . . Hacks Repelled . | . . . . Allies | -11 -10 -10 -10 -------- Run | Yrd Mat Min Sub Total Allies 3 | . . 3 . Largest Group 3 | . . 3 . Highest-Rated Group 40 | . . 40 . Highest-Rated Ally 16 | . . 16 . Total Orders . | . . . . Ally Attacks 30 | . . 30 . Total Damage 307 | . . 307 . Kills 7 | . . 7 . Allies Corrupted . | . . . . Allies Melted . | . . . . Intel | -11 -10 -10 -10 ------- Run | Yrd Mat Min Sub Active Infowar (turns) 2351 | . 1469 353 529 Sensors 2351 | . 1469 353 529 Robot Analysis Total . | . . . . Derelict Logs Recovered 1 | . . 1 . Drone Launches . | . . . . Drone Recoveries . | . . . . Exploration | -11 -10 -10 -10 ------------- Run | Yrd Mat Min Sub Turns Passed 2452 | 77 1477 353 545 Spaces Moved 1782 | 59 1046 293 384 Core 4 | 4 . . . Treads . | . . . . Legs 1778 | 55 1046 293 384 Wheels . | . . . . Hover . | . . . . Flight . | . . . . Fastest Speed 50 | 50 120 120 120 Average Speed 119 | 115 120 120 120 Slowest Speed 190 | 120 120 190 120 Overloaded Moves . | . . . . Propulsion Burnouts . | . . . . Robots Hopped . | . . . . Potential Cave-ins . | . . . . Cave-ins Triggered . | . . . . Exploration Rate (%) 46 | 4 94 53 36 Regions Visited 3 Branch Regions 2 Pre-discovered Areas 1 | . . . 1 Known Exits Taken 1 | . 1 . . Unknown Exits Taken 2 | 1 . 1 . Scrap Searched . | . . . . Spaces Dug . | . . . . Terrain Destroyed 47 | . 15 . 32 Melee . | . . . . Projectile . | . . . . AOE 47 | . 15 . 32 Terrain Rammed . | . . . . Walls Destroyed . | . . . . Machines Disabled . | . . . . Actions | -11 -10 -10 -10 --------- Run | Yrd Mat Min Sub Total 1969 | 65 1172 292 440 Wait 71 | . 40 . 31 Move 1779 | 58 1045 292 384 Hop . | . . . . Pick Up 16 | 1 12 . 3 Fast Attach 8 | 6 2 . . Attach 4 | . . . 4 Detach . | . . . . Swap 11 | . 10 . 1 Drop 11 | . 9 . 2 Fire 68 | . 54 . 14 Melee . | . . . . Ram . | . . . . Kick 1 | . . . 1 Crush . | . . . . Escape Stasis . | . . . . Rewire . | . . . . Trap . | . . . . Miscellaneous . | . . . . Route ------- -11/Scrapyard -10/Materials (discovered 4 exits: [*Mat x3] / *Min) -10/Mines (discovered 2 exits: [*Mat] / [*Sub]) -10/Subcaves History --------- Turn | Location | Event 12 | -11/Scrapyard | Discovered new exit (range 16) 78 | -11/Scrapyard | Entered Materials 231 | -10/Materials | Discovered new exit (range 13) 278 | -10/Materials | Discovered new exit (range 14) 307 | -10/Materials | Build established: Mutant 578 | -10/Materials | Derelicts attacked the area 1115 | -10/Materials | Discovered new exit (range 9) 1270 | -10/Materials | Repaired Lgt. Cannon 1460 | -10/Materials | Discovered new exit (range 8) 1484 | -10/Materials | Identified exit to Mines 1555 | -10/Materials | Entered Mines 1617 | -10/Mines | Found a hidden stash of uninstalled traps 1703 | -10/Mines | Discovered new exit (range 10) 1711 | -10/Mines | Learned 4 Materials zone layouts 1720 | -10/Mines | Assisted by bots powering up and referring to "LRC-V3" 1837 | -10/Mines | Assembled infested the area 1842 | -10/Mines | Assisted by a Guerilla fighting off Assembled 1900 | -10/Mines | Discovered new exit (range 6) 1908 | -10/Mines | Entered Subcaves 1909 | -10/Subcaves | Approached by a straggling Scientist 1938 | -10/Subcaves | Lost 3 parts (1p1n1w) 2067 | -10/Subcaves | Learned location of Zion (-7) 2067 | -10/Subcaves | Met a Zionite searching for "candidates" 2136 | -10/Subcaves | Ambushed by swarm of Subdwellers 2211 | -10/Subcaves | Shifting Twisted Machinery released Sub. Shrapnel Launcher 2213 | -10/Subcaves | Shifting Twisted Machinery released Sub. Optics 2251 | -10/Subcaves | Ambushed by Subdwellers from Twisted Machinery 2393 | -10/Subcaves | Core integrity fell below 50% 2397 | -10/Subcaves | A swath of the cavern ceiling suddenly collapsed 2442 | -10/Subcaves | Core integrity fell below 20% 2453 | -10/Subcaves | Destroyed by 6X-AEN(R) with Subdweller Machine Gun Last Messages --------------- 02285_ %1SFBKL2#W=QA#CAQZHI2EH 02287_ The unstable cave ceiling collapses. 02289_ Acquired 20 matter. 02295_ The unstable cave ceiling collapses. 02296_ Acquired 33 matter. 02299_ The unstable cave ceiling collapses. 02299_ Acquired Aluminum Leg. 02301_ System corrupted: Lgt. Cannon rejected. 02382_ Acquired 5 matter. 02397_ 13 Matter crushed. A swath of the cavern ceiling suddenly collapses. 02403_ Acquired 5 matter. 02412_ Acquired 10 matter. 02421_ Acquired 5 matter. 02436_ Kicked EN-FNA(R) out of the way. 02437_ Sensor Array destroyed. 02437_ Critical hit (Destroy). 02437_ Lgt. Ion Engine destroyed. 02449_ AV-X24(R) destroyed. Map ----- +----------------------------------------------------+ | ????????????????????????????## ## #???? | | ???????????????????????????## ## ## #???? | | ???????????????????????????# ##? #???? | | ?????????????????????????$?# ##?? #???? | | ???????????????????????#$ "##" ##?? ##???? | | ????????????????????????# ##??#????? | | ???????????????????????# #$#" ## ###?????? | | ???????????????????????????## ## ##????? | | ???????????????????????????# #"#????? | | ???????????????????????????# % #""###???? | | ???????????????????????????#### ####""##??? | | ??????????????????????????????## ##?#"##"#??? | | ??????????????????????#????????### ##??##""##??? | | ?????????????????????? #?????###?## #???###"##??? | | ?????????????????????? #???## #??# #???##"##???? | | ??????????????????????# ???# #??# ??? #""#???? | | ?????????????????????## ???# #??# ########"#???? | | ????????????????????## ??## ##?###""#"## ##???? | | ????????????????????# ### ###" ##""#""#????? | | ????????????????????# ##"##%#"""##????? | | ????????????????????# ##;##"##"# ????? | | ??????????????????##??# % &RR ;#"##"## ????? | | ?????????????????## ## ## = ;"####"# ????? | | ?????????????????# % ## R # ##??####????? | | ?????????????????# ### # "##??#??????? | | ?????????????????# % @ #### ##????????? | | ?????????????# O ##?# #????????? | | ?????????? % #########?# #???????? | | ???????????# ## ???????????# #######???????? | | ???????????#??????????????????# ##?????????????? | | ??????????????????????????????####???????????????? | | ?????????????????????????????????????????????????? | | ?????????????????????????????????????????????????? | | ?????????????????????????????????????????????????? | | ?????????????????????????????????????????????????? | | ?????????????????????????????????????????????????? | | ?????????????????????????????????????????????????? | | ?????????????????????????????????????????????????? | | ?????????????????????????????????????????????????? | | ?????????????????????????????????????????????????? | | ?????????????????????????????????????????????????? | | ?????????????????????????????????????????????????? | | ?????????????????????????????????????????????????? | | ?????????????????????????????????????????????????? | | ?????????????????????????????????????????????????? | | | | | | | | | | | +----------------------------------------------------+ Best States ------------- Heat Dissipation 25 Energy Generation 14 Energy Capacity 250 Matter Stores 300 Matter Capacity 300 Sight Range 16 Robot Scan Range 14 Terrain Scan Density 10 Resistance: KI 20 Resistance: TH 20 Resistance: EX 20 Resistance: EM 20 Resistance: I 20 Resistance: S 20 Resistance: P 20 Evasion (%) 55 Offensive Hacking 10 Item Schematics ----------------- None Robot Schematics ------------------ None Fabricated ------------ Nothing Repaired ---------- Lgt. Cannon | 60% | -10/Materials Alien Tech Used ----------------- None Achievements -------------- None Challenges ------------ None Game ------ Seed ReinforcedPhaseBuckler Manual? 0 Play Time 00:35:43 Cumulative 15.8 hours Start 2025.08.23 @ 01:45:29 End 2025.08.23 @ 02:25:30 Sessions 1 Manual Loads 0 Difficulty Adventurer Special Mode None Game No. 21 Rogue 0 Adventurer 21 Explorer 0 Win Type - Total 0 Types 0/0/0/0/0/0/0/0/0/0 Lore% 9 Gallery% 17 Achievement% 16 Wizard Run 0 Options --------- Layout 1 ASCII 0 Keyboard 1 Movement Arrows Keybinds 0 Fullscreen 1 Font 24/Smallcaps Map View 50x35 Zoom Use 0% Tactical HUD 1 Map Filters NONE Filters NONE Steam 1 RUN: b840aadd-ee9a-4316-9efe-b323cf8b3d25